[Event "Titled Tuesday Blitz June 6 Early 2023"]
[White "Weetik, Vjacheslav"]
[Black "Lorenzo De La Riva, Lazaro"]
[WhiteFideId "4153472"]
[BlackFideId "2268809"]
[WhiteElo "2469"]
[BlackElo "2294"]
[Result "1-0"]
[Round "5"]
[TimeControl "180+2"]
[Date "2023.06.06"]
[WhiteClock "0:00:05"]
[BlackClock "0:00:08"]
[Board "48"]

1. d4 {[%clk 0:02:59]}  d5 {[%clk 0:02:58]} 2. c4 {[%clk 0:02:59]}  e6 {[%clk 0:02:58]} 3. Nc3 {[%clk 0:03:00]}  a6 {[%clk 0:02:59]} 4. cxd5 {[%clk 0:02:47]}  exd5 {[%clk 0:03:00]} 5. Bf4 {[%clk 0:02:46]}  Nf6 {[%clk 0:02:51]} 6. e3 {[%clk 0:02:46]}  Bd6 {[%clk 0:02:50]} 7. Bg5 {[%clk 0:02:40]}  c6 {[%clk 0:02:48]} 8. Bd3 {[%clk 0:02:37]}  Be6 {[%clk 0:02:45]} 9. Nf3 {[%clk 0:02:24]}  h6 {[%clk 0:02:40]} 10. Bh4 {[%clk 0:02:24]}  Nbd7 {[%clk 0:02:39]} 11. O-O {[%clk 0:02:13]}  O-O {[%clk 0:02:37]} 12. Qc2 {[%clk 0:02:11]}  Qc7 {[%clk 0:02:35]} 13. Rab1 {[%clk 0:02:05]}  Rfe8 {[%clk 0:02:27]} 14. b4 {[%clk 0:02:02]}  b5 {[%clk 0:02:22]} 15. Bg3 {[%clk 0:01:52]}  Bxg3 {[%clk 0:02:19]} 16. hxg3 {[%clk 0:01:52]}  Nb6 {[%clk 0:02:11]} 17. a4 {[%clk 0:01:52]}  Nfd7 {[%clk 0:01:59]} 18. Rfc1 {[%clk 0:01:40]}  Bg4 {[%clk 0:01:47]} 19. axb5 {[%clk 0:01:13]}  Bxf3 {[%clk 0:01:43]} 20. bxc6 {[%clk 0:00:55]}  Qxc6 {[%clk 0:01:27]} 21. gxf3 {[%clk 0:00:55]}  Qf6 {[%clk 0:01:24]} 22. Kg2 {[%clk 0:00:52]}  Qg5 {[%clk 0:01:22]} 23. Qe2 {[%clk 0:00:50]}  a5 {[%clk 0:01:14]} 24. bxa5 {[%clk 0:00:47]}  Rxa5 {[%clk 0:01:13]} 25. Nb5 {[%clk 0:00:45]}  Qe7 {[%clk 0:00:28]} 26. Rc7 {[%clk 0:00:40]}  Rea8 {[%clk 0:00:26]} 27. Rbc1 {[%clk 0:00:31]}  Ra2 {[%clk 0:00:24]} 28. R1c2 {[%clk 0:00:31]}  Ra1 {[%clk 0:00:24]} 29. f4 {[%clk 0:00:29]}  Qe6 {[%clk 0:00:23]} 30. Qh5 {[%clk 0:00:21]}  Nc4 {[%clk 0:00:21]} 31. Nc3 {[%clk 0:00:13]}  Nf6 {[%clk 0:00:19]} 32. Qe2 {[%clk 0:00:11]}  Nd6 {[%clk 0:00:18]} 33. Nb5 {[%clk 0:00:06]}  Nde4 {[%clk 0:00:18]} 34. f3 {[%clk 0:00:05]}  Nd6 {[%clk 0:00:16]} 35. R7c6 {[%clk 0:00:05]}  Rh1 {[%clk 0:00:15]} 36. Kxh1 {[%clk 0:00:04]}  Qh3+ {[%clk 0:00:15]} 37. Kg1 {[%clk 0:00:05]}  Ra1+ {[%clk 0:00:15]} 38. Rc1 {[%clk 0:00:05]}  Qxg3+ {[%clk 0:00:15]} 39. Qg2 {[%clk 0:00:05]}  Rxc1+ {[%clk 0:00:15]} 40. Rxc1 {[%clk 0:00:05]}  Qh4 {[%clk 0:00:14]} 41. Nxd6 {[%clk 0:00:05]}  g5 {[%clk 0:00:13]} 42. Nf5 {[%clk 0:00:05]}  Qh5 {[%clk 0:00:12]} 43. Nxh6+ {[%clk 0:00:05]}  Qxh6 {[%clk 0:00:07]} 44. Qxg5+ {[%clk 0:00:05]}  Qxg5+ {[%clk 0:00:08]} 45. fxg5 {[%clk 0:00:05]} 1-0


[Site "https://www.chess.com"]

[Event "Titled Tuesday Blitz June 6 Early 2023"]
[White "Nikologorsky, Matfei"]
[Black "Kushko, Dmitriy"]
[WhiteFideId "24102474"]
[BlackFideId "14162261"]
[WhiteElo "2153"]
[BlackElo "2230"]
[Result "0-1"]
[Round "5"]
[TimeControl "180+2"]
[Date "2023.06.06"]
[WhiteClock "0:00:04"]
[BlackClock "0:00:08"]
[Board "51"]

1. e4 {[%clk 0:03:00]}  g6 {[%clk 0:03:00]} 2. d4 {[%clk 0:03:00]}  Bg7 {[%clk 0:03:00]} 3. h4 {[%clk 0:03:01]}  d5 {[%clk 0:02:52]} 4. e5 {[%clk 0:03:00]}  c5 {[%clk 0:02:51]} 5. c3 {[%clk 0:02:59]}  h5 {[%clk 0:02:43]} 6. Nf3 {[%clk 0:02:50]}  Nc6 {[%clk 0:02:42]} 7. Be3 {[%clk 0:02:45]}  Nh6 {[%clk 0:02:35]} 8. Bb5 {[%clk 0:02:29]}  cxd4 {[%clk 0:02:22]} 9. cxd4 {[%clk 0:02:28]}  Bd7 {[%clk 0:02:16]} 10. Nc3 {[%clk 0:02:25]}  Nf5 {[%clk 0:02:00]} 11. O-O {[%clk 0:02:14]}  e6 {[%clk 0:01:49]} 12. Bg5 {[%clk 0:02:13]}  Qb6 {[%clk 0:01:45]} 13. Bxc6 {[%clk 0:01:53]}  Bxc6 {[%clk 0:01:45]} 14. Qd2 {[%clk 0:01:48]}  O-O {[%clk 0:01:46]} 15. Bf6 {[%clk 0:01:42]}  Rfc8 {[%clk 0:01:19]} 16. Kh2 {[%clk 0:01:42]}  Bb5 {[%clk 0:01:10]} 17. Rg1 {[%clk 0:01:39]}  Nh6 {[%clk 0:01:02]} 18. Bxg7 {[%clk 0:01:36]}  Kxg7 {[%clk 0:01:01]} 19. Qf4 {[%clk 0:01:25]}  Ng4+ {[%clk 0:00:52]} 20. Kg3 {[%clk 0:01:25]}  Be8 {[%clk 0:00:52]} 21. Rab1 {[%clk 0:01:15]}  Rc4 {[%clk 0:00:51]} 22. Rgd1 {[%clk 0:01:12]}  Rac8 {[%clk 0:00:51]} 23. Ng5 {[%clk 0:01:09]}  Nh6 {[%clk 0:00:26]} 24. Kh2 {[%clk 0:00:56]}  Nf5 {[%clk 0:00:23]} 25. Nf3 {[%clk 0:00:44]}  Rb4 {[%clk 0:00:22]} 26. Qd2 {[%clk 0:00:39]}  Rcc4 {[%clk 0:00:22]} 27. Ne2 {[%clk 0:00:38]}  a5 {[%clk 0:00:19]} 28. b3 {[%clk 0:00:38]}  Rc8 {[%clk 0:00:19]} 29. Rbc1 {[%clk 0:00:38]}  Rc6 {[%clk 0:00:16]} 30. Ng3 {[%clk 0:00:27]}  Nxg3 {[%clk 0:00:15]} 31. Kxg3 {[%clk 0:00:27]}  a4 {[%clk 0:00:13]} 32. bxa4 {[%clk 0:00:26]}  Rxa4 {[%clk 0:00:13]} 33. Rb1 {[%clk 0:00:26]}  Qa6 {[%clk 0:00:12]} 34. Rb2 {[%clk 0:00:27]}  Rb6 {[%clk 0:00:11]} 35. Rdb1 {[%clk 0:00:26]}  Rxb2 {[%clk 0:00:11]} 36. Rxb2 {[%clk 0:00:25]}  b5 {[%clk 0:00:11]} 37. Ng5 {[%clk 0:00:23]}  Qb6 {[%clk 0:00:10]} 38. Rb4 {[%clk 0:00:22]}  Qa5 {[%clk 0:00:09]} 39. a3 {[%clk 0:00:21]}  Rxa3+ {[%clk 0:00:08]} 40. Nf3 {[%clk 0:00:18]}  Ra4 {[%clk 0:00:08]} 41. Rb2 {[%clk 0:00:17]}  Qxd2 {[%clk 0:00:08]} 42. Rxd2 {[%clk 0:00:16]}  b4 {[%clk 0:00:07]} 43. Rb2 {[%clk 0:00:16]}  Bb5 {[%clk 0:00:08]} 44. Nd2 {[%clk 0:00:16]}  Bc4 {[%clk 0:00:08]} 45. Kf4 {[%clk 0:00:16]}  b3 {[%clk 0:00:08]} 46. Ke3 {[%clk 0:00:16]}  Ra2 {[%clk 0:00:08]} 47. Rb1 {[%clk 0:00:14]}  Rc2 {[%clk 0:00:08]} 48. g3 {[%clk 0:00:13]}  Rc3+ {[%clk 0:00:08]} 49. Kf4 {[%clk 0:00:13]}  Rd3 {[%clk 0:00:08]} 50. Nf3 {[%clk 0:00:14]}  Kf8 {[%clk 0:00:08]} 51. Rb2 {[%clk 0:00:13]}  Ke7 {[%clk 0:00:08]} 52. Rb1 {[%clk 0:00:13]}  Kd7 {[%clk 0:00:09]} 53. g4 {[%clk 0:00:11]}  hxg4 {[%clk 0:00:08]} 54. Kxg4 {[%clk 0:00:12]}  Kc6 {[%clk 0:00:08]} 55. Rb2 {[%clk 0:00:11]}  Kb5 {[%clk 0:00:08]} 56. Ng5 {[%clk 0:00:11]}  Kb4 {[%clk 0:00:07]} 57. Nxf7 {[%clk 0:00:11]}  Kc3 {[%clk 0:00:08]} 58. Rb1 {[%clk 0:00:11]}  Kc2 {[%clk 0:00:08]} 59. Rg1 {[%clk 0:00:10]}  Rd1 {[%clk 0:00:08]} 60. Rxd1 {[%clk 0:00:10]}  Kxd1 {[%clk 0:00:09]} 61. Ng5 {[%clk 0:00:11]}  b2 {[%clk 0:00:09]} 62. Nxe6 {[%clk 0:00:12]}  b1=Q {[%clk 0:00:09]} 63. Ng7 {[%clk 0:00:11]}  Qe4+ {[%clk 0:00:10]} 64. Kg5 {[%clk 0:00:11]}  Bd3 {[%clk 0:00:10]} 65. f4 {[%clk 0:00:11]}  Qxd4 {[%clk 0:00:10]} 66. h5 {[%clk 0:00:11]}  gxh5 {[%clk 0:00:10]} 67. Nxh5 {[%clk 0:00:12]}  Qe3 {[%clk 0:00:10]} 68. Ng7 {[%clk 0:00:10]}  Ke2 {[%clk 0:00:09]} 69. e6 {[%clk 0:00:11]}  Kf3 {[%clk 0:00:09]} 70. Kf6 {[%clk 0:00:07]}  Qxf4+ {[%clk 0:00:09]} 71. Ke7 {[%clk 0:00:08]}  Qc7+ {[%clk 0:00:09]} 72. Kf6 {[%clk 0:00:08]}  Kg4 {[%clk 0:00:09]} 73. e7 {[%clk 0:00:08]}  Bb5 {[%clk 0:00:09]} 74. Ne6 {[%clk 0:00:07]}  Qc3+ {[%clk 0:00:08]} 75. Kf7 {[%clk 0:00:07]}  Qe3 {[%clk 0:00:08]} 76. Ng7 {[%clk 0:00:04]}  d4 {[%clk 0:00:08]} 77. Ne6 {[%clk 0:00:04]}  Bc4 {[%clk 0:00:07]} 78. Kf8 {[%clk 0:00:03]}  Qxe6 {[%clk 0:00:07]} 79. e8=Q {[%clk 0:00:04]}  Qxe8+ {[%clk 0:00:07]} 80. Kxe8 {[%clk 0:00:04]}  d3 {[%clk 0:00:08]} 0-1


[Site "https://www.chess.com"]

[Event "Titled Tuesday Blitz June 6 Early 2023"]
[White "Papasimakopoulos, Alexandros"]
[Black "Yonal, Timur"]
[WhiteFideId "4244125"]
[BlackFideId "44115725"]
[WhiteElo "2359"]
[BlackElo "1966"]
[Result "0-1"]
[Round "5"]
[TimeControl "180+2"]
[Date "2023.06.06"]
[WhiteClock "0:00:05"]
[BlackClock "0:00:21"]
[Board "52"]

1. d4 {[%clk 0:02:57]}  d5 {[%clk 0:03:00]} 2. c4 {[%clk 0:02:56]}  e6 {[%clk 0:03:00]} 3. Nc3 {[%clk 0:02:56]}  a6 {[%clk 0:02:56]} 4. cxd5 {[%clk 0:02:56]}  exd5 {[%clk 0:02:57]} 5. Qb3 {[%clk 0:02:56]}  c6 {[%clk 0:02:57]} 6. Nf3 {[%clk 0:02:56]}  Bd6 {[%clk 0:02:54]} 7. e4 {[%clk 0:02:56]}  dxe4 {[%clk 0:02:53]} 8. Ng5 {[%clk 0:02:56]}  Nh6 {[%clk 0:02:50]} 9. Ngxe4 {[%clk 0:02:49]}  Nf5 {[%clk 0:02:38]} 10. d5 {[%clk 0:02:41]}  O-O {[%clk 0:02:37]} 11. Bg5 {[%clk 0:02:31]}  Qc7 {[%clk 0:02:23]} 12. Nxd6 {[%clk 0:02:14]}  Nxd6 {[%clk 0:02:15]} 13. Be2 {[%clk 0:02:10]}  h6 {[%clk 0:02:02]} 14. Bf4 {[%clk 0:02:08]}  c5 {[%clk 0:01:52]} 15. O-O {[%clk 0:01:52]}  Re8 {[%clk 0:01:39]} 16. Bf3 {[%clk 0:01:52]}  g5 {[%clk 0:01:28]} 17. Bg3 {[%clk 0:01:42]}  f5 {[%clk 0:01:26]} 18. Bh5 {[%clk 0:01:39]}  f4 {[%clk 0:01:24]} 19. Bxe8 {[%clk 0:01:35]}  Nxe8 {[%clk 0:01:23]} 20. d6+ {[%clk 0:01:32]}  Qf7 {[%clk 0:01:23]} 21. Nd5 {[%clk 0:00:53]}  Be6 {[%clk 0:01:16]} 22. Ne7+ {[%clk 0:00:53]}  Kf8 {[%clk 0:01:13]} 23. Qd3 {[%clk 0:00:39]}  Bc4 {[%clk 0:00:57]} 24. Qc3 {[%clk 0:00:28]}  Nxd6 {[%clk 0:00:54]} 25. Rfe1 {[%clk 0:00:27]}  Qg7 {[%clk 0:00:39]} 26. Qd2 {[%clk 0:00:22]}  Nf7 {[%clk 0:00:31]} 27. b3 {[%clk 0:00:14]}  Bb5 {[%clk 0:00:28]} 28. Bxf4 {[%clk 0:00:10]}  gxf4 {[%clk 0:00:26]} 29. Qxf4 {[%clk 0:00:11]}  Nc6 {[%clk 0:00:26]} 30. Nf5 {[%clk 0:00:11]}  Qf6 {[%clk 0:00:23]} 31. Qg4 {[%clk 0:00:09]}  Nce5 {[%clk 0:00:21]} 32. Qh3 {[%clk 0:00:09]}  Bd7 {[%clk 0:00:20]} 33. g4 {[%clk 0:00:07]}  Bxf5 {[%clk 0:00:20]} 34. gxf5 {[%clk 0:00:08]}  Kg7 {[%clk 0:00:20]} 35. Re3 {[%clk 0:00:05]}  Kh7 {[%clk 0:00:20]} 36. Rg3 {[%clk 0:00:05]}  Ng5 {[%clk 0:00:20]} 37. Qg2 {[%clk 0:00:05]}  Nef3+ {[%clk 0:00:20]} 38. Rxf3 {[%clk 0:00:05]}  Nxf3+ {[%clk 0:00:20]} 39. Qxf3 {[%clk 0:00:05]}  Qxa1+ {[%clk 0:00:21]} 0-1


[Site "https://www.chess.com"]

[Event "Titled Tuesday Blitz June 6 Early 2023"]
[White "Moral Garcia, Serafin"]
[Black "Kukhmazov, Arsen"]
[WhiteFideId "2201925"]
[BlackFideId "24108260"]
[WhiteElo "2274"]
[BlackElo "2396"]
[Result "1-0"]
[Round "5"]
[TimeControl "180+2"]
[Date "2023.06.06"]
[WhiteClock "0:01:20"]
[BlackClock "0:01:22"]
[Board "54"]

1. e4 {[%clk 0:03:00]}  e5 {[%clk 0:02:57]} 2. Nf3 {[%clk 0:03:01]}  Nc6 {[%clk 0:02:57]} 3. Bb5 {[%clk 0:03:00]}  a6 {[%clk 0:02:57]} 4. Bxc6 {[%clk 0:03:00]}  dxc6 {[%clk 0:02:58]} 5. O-O {[%clk 0:03:01]}  Qf6 {[%clk 0:02:58]} 6. d4 {[%clk 0:03:00]}  exd4 {[%clk 0:02:48]} 7. Bg5 {[%clk 0:03:00]}  Qg6 {[%clk 0:02:44]} 8. Qxd4 {[%clk 0:02:44]}  Be6 {[%clk 0:02:40]} 9. Nc3 {[%clk 0:02:37]}  h6 {[%clk 0:02:33]} 10. Bh4 {[%clk 0:02:37]}  Bh3 {[%clk 0:02:30]} 11. Bg3 {[%clk 0:02:36]}  Be6 {[%clk 0:02:19]} 12. Bxc7 {[%clk 0:02:32]}  Nf6 {[%clk 0:02:17]} 13. Qb6 {[%clk 0:02:24]}  Be7 {[%clk 0:02:04]} 14. Qxb7 {[%clk 0:02:20]}  O-O {[%clk 0:02:03]} 15. Bg3 {[%clk 0:02:09]}  Nd7 {[%clk 0:02:02]} 16. Rfd1 {[%clk 0:02:02]}  Rfd8 {[%clk 0:01:53]} 17. Nd4 {[%clk 0:01:56]}  Bc5 {[%clk 0:01:35]} 18. Nxc6 {[%clk 0:01:49]}  Rdc8 {[%clk 0:01:35]} 19. Nd5 {[%clk 0:01:32]}  Bxd5 {[%clk 0:01:29]} 20. exd5 {[%clk 0:01:31]}  Qf5 {[%clk 0:01:22]} 21. d6 {[%clk 0:01:20]} 1-0


[Site "https://www.chess.com"]

[Event "Titled Tuesday Blitz June 6 Early 2023"]
[White "Pakleza, Zbigniew"]
[Black "Sharapov, Evgeny"]
[WhiteFideId "1119290"]
[BlackFideId "14103133"]
[WhiteElo "2410"]
[BlackElo "2367"]
[Result "1-0"]
[Round "5"]
[TimeControl "180+2"]
[Date "2023.06.06"]
[WhiteClock "0:00:21"]
[BlackClock "0:01:10"]
[Board "56"]

1. d4 {[%clk 0:03:00]}  Nf6 {[%clk 0:02:59]} 2. Nf3 {[%clk 0:03:01]}  e6 {[%clk 0:02:59]} 3. Bf4 {[%clk 0:03:01]}  d5 {[%clk 0:02:59]} 4. e3 {[%clk 0:03:02]}  c5 {[%clk 0:02:59]} 5. c3 {[%clk 0:03:02]}  Bd6 {[%clk 0:02:58]} 6. Bg3 {[%clk 0:03:02]}  O-O {[%clk 0:02:58]} 7. Nbd2 {[%clk 0:03:02]}  Nc6 {[%clk 0:02:57]} 8. Bd3 {[%clk 0:03:03]}  b6 {[%clk 0:02:56]} 9. Ne5 {[%clk 0:03:03]}  Bb7 {[%clk 0:02:55]} 10. f4 {[%clk 0:03:03]}  Nd7 {[%clk 0:02:50]} 11. O-O {[%clk 0:02:56]}  f5 {[%clk 0:02:50]} 12. Ndf3 {[%clk 0:02:51]}  Ndxe5 {[%clk 0:02:49]} 13. fxe5 {[%clk 0:02:49]}  Be7 {[%clk 0:02:49]} 14. Rc1 {[%clk 0:02:49]}  a5 {[%clk 0:02:43]} 15. Qe2 {[%clk 0:02:49]}  c4 {[%clk 0:02:41]} 16. Bc2 {[%clk 0:02:46]}  b5 {[%clk 0:02:41]} 17. h3 {[%clk 0:02:45]}  b4 {[%clk 0:02:41]} 18. Ba4 {[%clk 0:02:40]}  Rb8 {[%clk 0:02:35]} 19. b3 {[%clk 0:02:34]}  cxb3 {[%clk 0:02:27]} 20. axb3 {[%clk 0:02:29]}  bxc3 {[%clk 0:02:27]} 21. Rxc3 {[%clk 0:02:17]}  Nb4 {[%clk 0:02:26]} 22. Rfc1 {[%clk 0:02:17]}  Ba6 {[%clk 0:02:26]} 23. Qd2 {[%clk 0:02:11]}  Rc8 {[%clk 0:02:23]} 24. Rxc8 {[%clk 0:01:54]}  Bxc8 {[%clk 0:02:23]} 25. Kh2 {[%clk 0:01:28]}  Bd7 {[%clk 0:02:22]} 26. Bxd7 {[%clk 0:01:20]}  Qxd7 {[%clk 0:02:23]} 27. Bh4 {[%clk 0:01:20]}  Bxh4 {[%clk 0:02:22]} 28. Nxh4 {[%clk 0:01:21]}  Rc8 {[%clk 0:02:19]} 29. Nf3 {[%clk 0:01:21]}  Rxc1 {[%clk 0:02:18]} 30. Qxc1 {[%clk 0:01:22]}  Qc6 {[%clk 0:02:15]} 31. Qc5 {[%clk 0:01:15]}  Qxc5 {[%clk 0:02:06]} 32. dxc5 {[%clk 0:01:16]}  Kf7 {[%clk 0:02:06]} 33. Nd4 {[%clk 0:01:11]}  Ke7 {[%clk 0:01:48]} 34. c6 {[%clk 0:01:01]}  Nd3 {[%clk 0:01:36]} 35. c7 {[%clk 0:00:56]}  Kd7 {[%clk 0:01:36]} 36. Nxe6 {[%clk 0:00:55]}  Nxe5 {[%clk 0:01:32]} 37. Nxg7 {[%clk 0:00:53]}  Kxc7 {[%clk 0:01:24]} 38. Nxf5 {[%clk 0:00:53]}  Kb6 {[%clk 0:01:16]} 39. g4 {[%clk 0:00:51]}  Kc5 {[%clk 0:01:16]} 40. Kg3 {[%clk 0:00:50]}  Kb4 {[%clk 0:01:16]} 41. Nd4 {[%clk 0:00:49]}  Nd3 {[%clk 0:01:13]} 42. h4 {[%clk 0:00:44]}  Nc5 {[%clk 0:01:12]} 43. g5 {[%clk 0:00:30]}  Nxb3 {[%clk 0:01:11]} 44. Nxb3 {[%clk 0:00:21]}  Kxb3 {[%clk 0:01:11]} 45. h5 {[%clk 0:00:22]}  a4 {[%clk 0:01:10]} 46. g6 {[%clk 0:00:23]}  hxg6 {[%clk 0:01:10]} 47. h6 {[%clk 0:00:21]}  a3 {[%clk 0:01:10]} 48. h7 {[%clk 0:00:21]}  a2 {[%clk 0:01:10]} 49. h8=Q {[%clk 0:00:21]} 1-0


[Site "https://www.chess.com"]

[Event "Titled Tuesday Blitz June 6 Early 2023"]
[White "caropawn10"]
[Black "Chylewski, Patryk"]
[BlackFideId "1186191"]
[WhiteElo "2720"]
[BlackElo "2163"]
[Result "1-0"]
[Round "5"]
[TimeControl "180+2"]
[Date "2023.06.06"]
[WhiteClock "0:00:53"]
[BlackClock "0:00:01"]
[Board "57"]

1. c4 {[%clk 0:03:00]}  e5 {[%clk 0:02:49]} 2. Nc3 {[%clk 0:03:00]}  Nc6 {[%clk 0:02:48]} 3. Nf3 {[%clk 0:03:00]}  g6 {[%clk 0:02:45]} 4. d4 {[%clk 0:02:59]}  exd4 {[%clk 0:02:41]} 5. Nxd4 {[%clk 0:03:00]}  Bg7 {[%clk 0:02:42]} 6. Nxc6 {[%clk 0:03:00]}  bxc6 {[%clk 0:02:43]} 7. g3 {[%clk 0:02:55]}  Ne7 {[%clk 0:02:41]} 8. Bg2 {[%clk 0:02:55]}  O-O {[%clk 0:02:42]} 9. O-O {[%clk 0:02:56]}  Rb8 {[%clk 0:02:42]} 10. Qc2 {[%clk 0:02:56]}  d6 {[%clk 0:02:41]} 11. b3 {[%clk 0:02:56]}  Bf5 {[%clk 0:02:41]} 12. e4 {[%clk 0:02:57]}  Bg4 {[%clk 0:02:36]} 13. Bb2 {[%clk 0:02:56]}  Re8 {[%clk 0:02:34]} 14. h3 {[%clk 0:02:56]}  Be6 {[%clk 0:02:34]} 15. Rad1 {[%clk 0:02:56]}  c5 {[%clk 0:02:28]} 16. Kh2 {[%clk 0:02:37]}  Nc6 {[%clk 0:02:16]} 17. f4 {[%clk 0:02:22]}  Nd4 {[%clk 0:02:11]} 18. Qd2 {[%clk 0:02:17]}  Qc8 {[%clk 0:01:40]} 19. Rc1 {[%clk 0:02:08]}  Qa6 {[%clk 0:01:34]} 20. Ra1 {[%clk 0:02:01]}  Qb6 {[%clk 0:01:34]} 21. Rfc1 {[%clk 0:01:57]}  Qb4 {[%clk 0:01:26]} 22. Rab1 {[%clk 0:01:46]}  a5 {[%clk 0:01:24]} 23. Qd3 {[%clk 0:01:36]}  Qb6 {[%clk 0:01:12]} 24. Ne2 {[%clk 0:01:30]}  Nxe2 {[%clk 0:00:53]} 25. Qxe2 {[%clk 0:01:31]}  Bxb2 {[%clk 0:00:53]} 26. Qxb2 {[%clk 0:01:32]}  a4 {[%clk 0:00:51]} 27. Qf6 {[%clk 0:01:27]}  axb3 {[%clk 0:00:47]} 28. axb3 {[%clk 0:01:23]}  Bd7 {[%clk 0:00:37]} 29. Rf1 {[%clk 0:01:15]}  Re6 {[%clk 0:00:30]} 30. Qh4 {[%clk 0:01:13]}  Ree8 {[%clk 0:00:06]} 31. f5 {[%clk 0:01:00]}  d5 {[%clk 0:00:07]} 32. f6 {[%clk 0:00:58]}  Kh8 {[%clk 0:00:02]} 33. Qh6 {[%clk 0:00:57]}  Rg8 {[%clk 0:00:02]} 34. exd5 {[%clk 0:00:53]}  Qd6 {[%clk 0:00:01]} 35. Rf4 {[%clk 0:00:53]}  g5 {[%clk 0:00:02]} 36. Be4 {[%clk 0:00:53]}  Rg6 {[%clk 0:00:01]} 37. Bxg6 {[%clk 0:00:53]} 1-0


[Site "https://www.chess.com"]

[Event "Titled Tuesday Blitz June 6 Early 2023"]
[White "Baches Garcia, Guillermo"]
[Black "Yuan, Qingyu"]
[WhiteFideId "2209764"]
[BlackFideId "8609772"]
[WhiteElo "2515"]
[BlackElo "2359"]
[Result "0-1"]
[Round "5"]
[TimeControl "180+2"]
[Date "2023.06.06"]
[WhiteClock "0:00:05"]
[BlackClock "0:00:18"]
[Board "58"]

1. e4 {[%clk 0:03:00]}  e5 {[%clk 0:02:59]} 2. Nf3 {[%clk 0:03:00]}  Nc6 {[%clk 0:02:54]} 3. Nc3 {[%clk 0:03:01]}  Nf6 {[%clk 0:02:54]} 4. d4 {[%clk 0:03:01]}  exd4 {[%clk 0:02:55]} 5. Nxd4 {[%clk 0:03:02]}  Bb4 {[%clk 0:02:55]} 6. Nxc6 {[%clk 0:03:02]}  bxc6 {[%clk 0:02:56]} 7. Bd3 {[%clk 0:03:02]}  O-O {[%clk 0:02:57]} 8. O-O {[%clk 0:03:02]}  d5 {[%clk 0:02:57]} 9. Bd2 {[%clk 0:03:01]}  Bxc3 {[%clk 0:02:53]} 10. Bxc3 {[%clk 0:03:02]}  dxe4 {[%clk 0:02:53]} 11. Bxf6 {[%clk 0:03:01]}  Qxf6 {[%clk 0:02:54]} 12. Bxe4 {[%clk 0:03:01]}  Qxb2 {[%clk 0:02:54]} 13. Bxc6 {[%clk 0:03:01]}  Rb8 {[%clk 0:02:53]} 14. Rb1 {[%clk 0:03:00]}  Qxb1 {[%clk 0:02:52]} 15. Qxb1 {[%clk 0:03:00]}  Rxb1 {[%clk 0:02:52]} 16. Rxb1 {[%clk 0:03:00]}  Rd8 {[%clk 0:02:42]} 17. Bf3 {[%clk 0:02:57]}  Kf8 {[%clk 0:02:24]} 18. Rb8 {[%clk 0:02:47]}  Ke7 {[%clk 0:02:17]} 19. h4 {[%clk 0:02:39]}  Ba6 {[%clk 0:02:01]} 20. Rb3 {[%clk 0:02:28]}  Rd6 {[%clk 0:01:38]} 21. Rc3 {[%clk 0:02:07]}  Kd7 {[%clk 0:01:33]} 22. Be4 {[%clk 0:01:51]}  h6 {[%clk 0:01:21]} 23. f3 {[%clk 0:01:39]}  Rd4 {[%clk 0:01:21]} 24. Ra3 {[%clk 0:01:31]}  Rd6 {[%clk 0:01:20]} 25. Rc3 {[%clk 0:01:23]}  Bb5 {[%clk 0:01:13]} 26. Kf2 {[%clk 0:01:10]}  Rd2+ {[%clk 0:01:11]} 27. Kg3 {[%clk 0:01:08]}  Bf1 {[%clk 0:01:08]} 28. f4 {[%clk 0:01:07]}  Bb5 {[%clk 0:00:50]} 29. Bd3 {[%clk 0:00:57]}  Bxd3 {[%clk 0:00:42]} 30. Rxd3+ {[%clk 0:00:57]}  Rxd3+ {[%clk 0:00:43]} 31. cxd3 {[%clk 0:00:58]}  Kd6 {[%clk 0:00:32]} 32. Kf3 {[%clk 0:00:58]}  Kd5 {[%clk 0:00:30]} 33. Ke3 {[%clk 0:00:58]}  f5 {[%clk 0:00:30]} 34. h5 {[%clk 0:00:48]}  Kc5 {[%clk 0:00:30]} 35. g3 {[%clk 0:00:37]}  Kd5 {[%clk 0:00:30]} 36. Ke2 {[%clk 0:00:28]}  Kd4 {[%clk 0:00:30]} 37. Kd2 {[%clk 0:00:28]}  c6 {[%clk 0:00:29]} 38. a3 {[%clk 0:00:26]}  a6 {[%clk 0:00:26]} 39. Ke2 {[%clk 0:00:06]}  Kc3 {[%clk 0:00:24]} 40. Ke3 {[%clk 0:00:06]}  c5 {[%clk 0:00:23]} 41. Ke2 {[%clk 0:00:05]}  a5 {[%clk 0:00:18]} 0-1


[Site "https://www.chess.com"]